bitfinex/quotes_ETHUSD_20240718
["timestamp","ask_amount","ask_price","bid_price","bid_amount"]
[1721325422110,3.0,3406.2,3405.8,2.9361]
[1721325422501,3.0,3406.2,3405.6,0.30660493]
[1721325422502,5.93583,3406.2,3405.9,0.07050005]
[1721325422702,2.93591,3406.1,3405.9,0.07050005]
[1721325422903,2.93591,3406.1,3405.2,2.93662]
[1721325422904,2.93599,3406.0,3405.2,2.93662]
[1721325423208,2.93599,3406.0,3405.4,2.9365]
[1721325423525,2.93599,3406.0,3405.4,2.93651]
[1721325423830,2.93599,3406.0,3405.5,0.07076861]
[1721325424114,2.93597,3406.1,3405.5,3.00717861]
[1721325424420,2.936,3406.0,3405.5,0.07076861]
[1721325424624,2.93593,3406.1,3405.2,2.93665]
[1721325424845,5.93583,3406.2,3405.0,2.3722]
[1721325424846,3.0,3406.2,3405.6,3.00698146]
[1721325425133,2.93591,3406.1,3405.4,2.93645]
[1721325425279,3.0,3406.3,3405.7,3.00680432]
[1721325425484,3.0,3406.3,3405.7,2.93617]
[1721325425703,3.0,3406.3,3405.8,0.07056719]
[1721325426315,3.0,3406.3,3405.8,3.00672719]
[1721325426518,5.93574,3406.3,3405.8,0.07056719]
[1721325426900,5.93574,3406.3,3405.4,2.9365]
[1721325426901,2.93582,3406.2,3405.4,2.9365]
[1721325427106,2.93582,3406.2,3405.9,0.07045399]
[1721325427300,2.93582,3406.2,3405.5,2.93642]
[1721325427700,2.93591,3406.1,3405.6,0.0706554]
[1721325428416,5.9358,3406.3,3405.6,0.0706554]
[1721325428580,5.9358,3406.3,3405.7,2.93624]
[1721325428581,3.0,3406.3,3405.7,2.93624]
[1721325428928,3.0,3406.5,3405.7,3.00682826]
[1721325429134,2.93571,3406.4,3405.7,3.00682826]
[1721325429315,2.93571,3406.4,3405.7,3.00675826]
[1721325429614,3.0,3406.3,3405.8,2.93613]
[1721325429822,3.0,3406.3,3405.8,3.00665112]
[1721325429985,4.0671213,3406.6,3405.9,2.93607]
[1721325429986,2.93551,3406.6,3405.9,2.93607]
[1721325430322,3.0,3406.5,3405.9,3.00652399]
[1721325430616,5.93557,3406.5,3405.9,0.07045399]
[1721325430815,2.93566,3406.4,3405.9,0.07045399]
[1721325430982,3.0,3406.5,3405.9,3.00652399]
[1721325431184,3.593551,3406.5,3405.9,3.00652399]
[1721325431389,2.93553,3406.6,3405.9,3.00652399]
[1721325431614,2.93534,3406.8,3405.9,3.00652399]
[1721325431615,3.0,3406.4,3405.9,3.00652399]
[1721325431992,3.0,3406.4,3406.0,2.93597]
[1721325432213,3.0,3406.7,3406.0,3.00635686]
[1721325432425,3.0,3406.7,3406.2,2.9358]
[1721325432632,5.93541,3406.7,3406.1,0.07031973]
[1721325432844,5.93541,3406.7,3406.1,3.00620973]
[1721325435152,2.93571,3406.4,3406.1,0.07031973]
[1721325435358,2.93582,3406.2,3406.1,0.07031973]
[1721325435523,5.93582,3406.2,3405.6,2.93627]
[1721325435856,3.0,3406.1,3405.6,2.93627]
[1721325436010,3.0,3406.1,3405.7,2.9362]
[1721325436206,3.0,3406.2,3405.7,2.9362]
[1721325436410,5.93583,3406.2,3405.6,2.93633]
[1721325436637,7.048307,3406.2,3405.6,2.93633]
[1721325436811,4.112477,3406.2,3405.6,2.93626]
[1721325437012,3.0,3406.1,3405.7,2.9362]
[1721325437326,1.112477,3406.2,3405.7,2.9362]
[1721325437641,1.112477,3406.2,3405.8,0.07047773]
[1721325439529,3.0,3406.3,3405.9,2.93603]
[1721325439725,3.0,3406.5,3406.1,2.93584]
[1721325439937,3.0,3406.5,3405.9,5.36483]
[1721325440139,5.93548,3406.6,3406.2,0.07021599]
[1721325440344,2.4815,3406.5,3405.4,2.93645]
[1721325440555,4.2338,3406.4,3406.3,0.07014064]
[1721325440737,2.93608,3405.9,3405.3,2.93659]
[1721325441047,2.93608,3405.9,3405.4,0.07074558]
[1721325441250,3.0,3405.8,3405.4,0.07074558]
[1721325442145,5.93621,3405.8,3405.4,0.07074558]
[1721325442343,6.823436,3405.8,3405.4,0.07074558]
[1721325442565,6.823436,3405.8,3405.2,2.93663]
[1721325442729,6.823436,3405.8,3405.5,0.07071734]
[1721325442910,3.887226,3405.8,3405.3,2.93659]
[1721325443273,2.93605,3406.0,3405.4,2.93647]
[1721325443274,3.0,3405.9,3405.4,2.93647]
[1721325443547,5.93608,3405.9,3405.4,0.07078523]
[1721325443920,5.93608,3405.9,3405.1,2.93672]
[1721325444122,5.93608,3405.9,3405.3,2.93659]
[1721325444649,5.93608,3405.9,3405.4,0.07078523]
[1721325444821,3.0,3405.9,3405.4,3.00729523]
[1721325445023,5.93609,3405.9,3405.4,0.07078523]
[1721325445228,2.93618,3405.8,3405.2,2.93661]
[1721325445535,2.93616,3405.8,3405.2,2.93661]
[1721325445836,2.93616,3405.8,3405.3,0.07085238]
[1721325446223,6.82329,3405.9,3405.3,0.07085238]
[1721325446224,2.93625,3405.7,3405.3,0.07085238]
[1721325446435,6.82329,3405.9,3405.0,2.93681]
[1721325446436,2.93618,3405.8,3405.2,2.93668]
[1721325446630,2.93618,3405.8,3405.4,0.07079122]
[1721325446957,3.618518,3405.8,3405.4,0.07079122]
[1721325447139,3.618518,3405.8,3405.2,2.93668]
[1721325447318,3.618518,3405.8,3405.0,2.93681]
[1721325447319,3.618518,3405.8,3405.5,0.07072482]
[1721325447516,3.618518,3405.8,3405.1,2.93672]
[1721325447751,0.682338,3405.8,3404.9,2.7229]
[1721325448054,2.9363,3405.7,3405.1,5.87347]
[1721325448220,3.618558,3405.8,3405.2,2.93666]
[1721325448417,3.618558,3405.8,3405.2,3.00762517]
[1721325449256,5.93612,3405.9,3405.3,2.93658]
[1721325449463,3.0,3405.9,3405.4,2.93645]
[1721325449980,3.0,3405.9,3405.5,0.07076372]
[1721325451053,5.93608,3405.9,3405.5,0.07076372]
[1721325451217,5.93608,3405.9,3405.1,2.93674]
[1721325451418,2.9363,3405.7,3405.6,0.07068909]
[1721325451735,2.9363,3405.7,3405.0,2.9368]
[1721325451952,2.93634,3405.6,3405.0,2.9368]
[1721325452248,2.93634,3405.6,3405.1,2.93675]
[1721325452447,0.593608,3405.8,3405.1,2.93675]
[1721325452753,2.9363,3405.7,3405.2,0.07095769]
[1721325453048,3.5892908,3405.7,3405.2,0.07095769]
[1721325453251,2.93635,3405.6,3405.2,0.07095769]
[1721325453451,3.5892908,3405.7,3405.2,0.07095769]
[1721325455220,2.93617,3405.8,3405.2,0.07095769]
[1721325455431,3.0,3405.9,3405.4,2.93649]
[1721325455640,2.93592,3406.1,3405.4,2.93649]
[1721325455641,3.0,3406.0,3405.4,2.93649]
[1721325455849,3.0,3406.0,3405.5,0.07075624]
[1721325455850,2.93608,3405.9,3405.5,0.07075624]
[1721325456153,3.0,3405.8,3405.2,2.93661]
[1721325456355,5.93621,3405.8,3405.6,0.07068909]
[1721325456556,5.93621,3405.8,3405.2,2.93661]
[1721325456722,5.93621,3405.8,3405.7,0.07062195]
[1721325456925,5.93621,3405.8,3405.2,2.93661]
[1721325457459,5.93621,3405.8,3404.7,0.2941]
[1721325457460,2.93651,3405.4,3404.7,0.2941]
[1721325457755,2.93651,3405.4,3405.3,0.07089727]
[1721325457959,5.87329,3405.3,3404.7,0.2941]
[1721325458158,2.93663,3405.3,3404.5,2.2543]
[1721325458382,2.93684,3405.1,3404.5,2.2543]
[1721325458862,5.87369,3405.1,3404.5,2.2543]
[1721325459362,2.93688,3405.0,3404.5,2.2543]
[1721325459927,2.93687,3405.0,3404.5,2.2543]
[1721325460457,2.93703,3404.8,3404.1,2.395]
[1721325460657,2.93703,3404.8,3404.2,3.48754]
[1721325460658,3.524427,3404.8,3404.2,3.48754]
[1721325460957,5.93712,3404.7,3404.1,2.93762]
[1721325461945,5.93712,3404.7,3404.2,0.07158934]
[1721325462428,5.93712,3404.7,3404.1,2.93762]
[1721325462631,2.93726,3404.6,3404.3,0.07148881]
[1721325462843,2.93726,3404.6,3403.9,2.93779]
[1721325463043,2.93726,3404.6,3404.0,2.93771]
[1721325463444,2.93726,3404.6,3404.1,0.07162321]
[1721325463643,2.93726,3404.6,3404.0,2.93771]
[1721325463963,3.0,3404.7,3404.2,0.07155601]
[1721325463964,5.93718,3404.7,3404.2,0.07155601]
[1721325464132,5.93718,3404.7,3403.8,5.33287]
[1721325464133,6.65596156,3404.7,3404.1,3.00924321]
[1721325464331,5.93718,3404.7,3404.1,2.93762]
[1721325464532,5.93718,3404.7,3404.2,0.07155601]
[1721325464971,5.93718,3404.7,3404.1,2.93762]
[1721325465146,2.9372,3404.6,3404.3,0.07148881]
[1721325465340,2.9372,3404.6,3404.1,2.93762]
[1721325465341,2.9372,3404.6,3404.2,0.07155601]
[1721325465565,3.0,3404.7,3404.2,2.93747]
[1721325465866,3.0,3404.7,3404.3,0.07146595]
[1721325466078,3.0,3404.7,3404.2,2.93747]
[1721325466288,3.0,3404.7,3404.4,0.07139875]
[1721325466572,3.0,3405.0,3404.4,2.93736]
[1721325466867,4.82079843,3405.0,3404.4,2.93736]
[1721325467080,4.82079843,3405.0,3404.5,0.07129823]
[1721325468543,7.75771843,3405.0,3404.5,0.07129823]
[1721325468746,1.87881814,3404.9,3404.5,0.07129823]
[1721325469057,1.87881814,3404.9,3404.6,0.07119356]
[1721325469253,1.87881814,3404.9,3404.4,2.93736]
[1721325469457,1.87881814,3404.9,3404.7,0.07112638]
[1721325469664,4.81576814,3404.9,3404.2,2.93752]
[1721325469880,4.25734866,3404.8,3404.2,2.93752]
[1721325470236,4.25734866,3404.8,3404.2,2.93747]
[1721325471987,4.25734866,3404.8,3404.2,5.87494]
[1721325472135,4.25734866,3404.8,3404.3,2.93744]
[1721325472336,3.0,3404.8,3404.4,2.93729]
[1721325472582,3.0,3405.0,3404.6,2.93713]
[1721325472788,3.0,3405.1,3404.7,2.93706]
[1721325473449,7.5,3405.2,3404.9,2.93693]
[1721325475451,3.0,3405.1,3404.9,2.93693]
[1721325476661,7.5,3405.2,3404.9,2.93693]
[1721325477397,7.5,3405.2,3405.0,2.277]
[1721325477596,3.0,3405.6,3405.0,2.277]
[1721325478217,3.0,3405.6,3405.1,2.9367]
[1721325478375,3.0,3405.7,3405.1,2.9367]
[1721325478557,3.0,3405.7,3405.2,2.93667]
[1721325478758,4.00907871,3405.7,3405.2,2.93667]
[1721325478981,4.00907871,3405.7,3405.0,2.277]
[1721325479210,3.0,3405.7,3405.1,2.93671]
[1721325480060,3.0,3405.7,3405.3,2.93659]
[1721325480261,3.0,3405.9,3405.1,2.9367]
[1721325480465,2.93622,3405.8,3405.0,2.277]
[1721325480667,4.21861713,3405.9,3405.0,2.277]
[1721325480668,5.93632,3405.7,3405.0,2.277]
[1721325480873,1.01549371,3405.6,3405.0,2.277]
[1721325481095,4.01549371,3405.6,3405.0,2.277]
[1721325481296,4.01549371,3405.6,3405.1,2.93672]
[1721325481658,1.01549371,3405.6,3405.1,2.93672]
[1721325481990,4.01549371,3405.6,3405.1,2.93672]
[1721325482188,3.0,3405.6,3405.1,2.93671]
[1721325482394,7.15465713,3406.0,3405.3,2.93654]
[1721325482763,4.21861713,3406.0,3405.4,3.00681712]
[1721325482989,3.0,3406.0,3405.4,3.00681712]
[1721325483193,4.21861713,3406.0,3405.4,3.00681712]
[1721325483377,7.05028111,3406.0,3405.4,3.00681712]
[1721325485577,4.11429111,3406.0,3405.5,2.93641]
[1721325485761,1.11429111,3406.0,3405.5,2.93641]
[1721325485968,1.11429111,3406.0,3405.6,0.07019282]
[1721325487726,3.0,3406.1,3405.6,0.07019282]
[1721325488046,1.21861713,3406.3,3405.8,2.93615]
[1721325488320,4.21861713,3406.3,3405.8,2.93615]
[1721325488519,4.21861713,3406.3,3405.9,0.06998318]
[1721325489037,5.87198,3406.0,3405.9,0.06998318]
[1721325489195,5.61382337,3406.3,3405.1,5.19022]
[1721325489395,2.93628,3405.7,3405.1,5.19022]
[1721325489613,2.93628,3405.7,3405.2,0.0704315]
[1721325489830,2.93628,3405.7,3405.1,5.19022]
[1721325490498,5.87261,3405.7,3405.1,5.19022]
[1721325490828,2.93634,3405.6,3405.2,0.07045394]
[1721325491132,2.93659,3405.3,3405.2,0.07045394]
[1721325491301,5.87318,3405.3,3405.2,0.07045394]
[1721325491631,5.87318,3405.3,3404.2,0.61183885]
[1721325491632,2.93721,3404.6,3404.2,0.61183885]
[1721325492193,2.93712,3404.7,3404.2,0.61183885]
[1721325492889,2.93712,3404.7,3404.1,2.93762]
[1721325493110,3.64889322,3405.1,3404.1,3.78016]
[1721325493312,2.93699,3404.9,3404.3,2.93742]
[1721325494627,3.64889322,3405.1,3403.9,2.2561]
[1721325494800,2.93754,3404.2,3403.8,0.2941]
[1721325495001,0.587492,3404.1,3403.6,2.93806]
[1721325495248,2.93754,3404.2,3403.6,2.93806]
[1721325495610,2.93747,3404.3,3403.6,2.93806]
[1721325495811,2.93738,3404.4,3403.6,2.93806]
[1721325496015,2.93738,3404.4,3403.7,2.93795]
[1721325496257,2.93738,3404.4,3403.8,2.93788]
[1721325497515,2.93738,3404.4,3403.9,0.07134632]
[1721325498111,5.87448,3404.6,3403.9,0.07134632]
[1721325498312,5.93734,3404.5,3403.9,2.93778]
[1721325498524,5.93734,3404.5,3404.0,0.07127911]
[1721325498753,3.0,3404.5,3404.0,0.07127911]
[1721325498914,4.15825322,3404.9,3404.0,3.00895911]
[1721325499116,7.34191189,3404.8,3404.1,2.93757]
[1721325499316,4.34191189,3404.8,3404.1,2.93757]
[1721325499664,3.0,3404.7,3404.2,0.07116642]
[1721325499965,3.0,3404.7,3404.2,2.93753]
[1721325500111,3.0,3404.7,3404.3,0.07108609]
[1721325500315,0.73419119,3404.6,3403.6,2.93802]
[1721325500514,5.42265,3404.5,3404.4,0.0710189]
[1721325500757,2.93739,3404.4,3403.8,2.93788]
[1721325500963,2.93739,3404.4,3403.6,2.93799]
[1721325501169,5.93746,3404.3,3403.9,0.0713549]
[1721325501317,7.14689012,3404.3,3403.6,2.93799]
[1721325501534,7.14689012,3404.3,3404.0,0.07128769]
[1721325501737,2.93771,3404.1,3403.5,2.93814]
[1721325502138,2.93771,3404.1,3403.5,5.87623]
[1721325502333,7.14694012,3404.3,3403.5,2.93809]
[1721325502581,10.08447012,3404.3,3403.7,2.93791]
[1721325502737,7.14694012,3404.3,3403.7,2.93791]
[1721325505183,4.20943012,3404.3,3403.8,2.93784]
[1721325505393,1.20943012,3404.3,3403.8,2.93784]
[1721325505538,3.0,3404.2,3403.8,2.93784]
[1721325505735,1.20943012,3404.3,3403.8,2.93784]
[1721325505972,3.0,3404.4,3403.9,2.93778]
[1721325506195,3.0,3404.6,3404.1,2.93762]
[1721325506348,2.93695,3404.9,3404.1,2.93762]
[1721325506349,3.0,3404.8,3404.2,2.93748]
[1721325507568,5.93687,3405.0,3404.4,2.93736]
[1721325507771,5.93687,3405.0,3404.2,5.87495]
[1721325507940,7.78257079,3405.0,3404.3,2.93746]
[1721325508139,7.78257079,3405.0,3404.3,0.07103291]
[1721325508395,2.93699,3404.9,3404.3,0.07103291]
[1721325508543,4.84570079,3405.0,3404.3,0.07103291]
[1721325508544,1.84570079,3405.0,3404.3,0.07103291]
[1721325508744,4.78256079,3405.0,3404.3,3.00844291]
[1721325509374,2.93673,3405.2,3404.5,5.25602]
[1721325509650,7.5,3405.3,3404.9,2.93694]
[1721325509961,2.93621,3405.8,3405.1,2.93672]
[1721325510180,2.93626,3405.7,3405.1,2.93672]
[1721325510384,2.93626,3405.7,3405.2,0.07032273]
[1721325510747,1.39145132,3405.8,3405.2,0.07032273]
[1721325510946,1.39145132,3405.8,3405.3,2.93652]
[1721325511348,1.39145132,3405.8,3405.4,0.0700731]
[1721325511869,7.5,3406.0,3405.4,3.0065631]
[1721325512196,2.93594,3406.1,3405.4,3.0065631]
[1721325512402,4.15712322,3406.2,3405.5,2.9364]
[1721325512557,4.15712322,3406.2,3405.4,0.0700731]
[1721325512558,2.93583,3406.2,3405.6,2.93633]
[1721325512753,2.93583,3406.2,3405.6,0.06993881]
[1721325512754,0.70928632,3406.1,3405.6,0.06993881]
[1721325513989,3.64520632,3406.1,3405.6,0.06993881]
[1721325514366,3.0,3406.0,3405.6,0.06993881]
[1721325515351,3.0,3406.0,3405.6,3.00621881]
[1721325515598,3.0,3406.2,3405.6,3.00621881]
[1721325515805,2.93574,3406.3,3405.7,2.93621]
[1721325515947,2.93574,3406.3,3405.6,0.06993881]
[1721325515948,10.43541,3406.7,3406.0,2.93598]
[1721325516154,3.69157968,3406.6,3406.0,2.93598]
[1721325516392,3.69157968,3406.6,3406.1,0.06955451]
[1721325516609,3.69157968,3406.6,3406.1,3.00545451]
[1721325517003,0.75605968,3406.6,3406.1,3.00545451]
[1721325517370,2.93539,3406.7,3406.1,3.00539451]
[1721325517618,2.93525,3406.9,3406.3,2.93571]
[1721325517984,3.0,3406.8,3406.4,0.06933969]
[1721325518315,3.0,3406.8,3405.9,2.3368]
[1721325518316,3.0,3407.0,3405.9,2.3368]
[1721325518468,2.93539,3406.7,3406.5,0.06927258]
[1721325518671,3.293539,3406.6,3406.0,2.93593]
[1721325519189,0.293539,3406.6,3406.0,2.93593]
[1721325519386,0.293539,3406.6,3406.1,2.93585]
[1721325519915,5.9354,3406.7,3406.1,2.93585]
[1721325520074,3.0,3406.7,3406.1,2.93585]
[1721325520273,3.0,3406.8,3406.2,2.93576]
[1721325520890,5.93531,3406.8,3406.2,2.93576]
[1721325522431,2.93545,3406.7,3405.9,2.3368]
[1721325522574,2.93562,3406.5,3405.9,2.3368]
[1721325522974,0.593545,3406.6,3405.9,5.27281]
[1721325523175,3.593545,3406.6,3405.9,5.27281]
[1721325523412,6.529035,3406.6,3406.0,2.93598]
[1721325523991,3.0,3406.6,3406.0,2.93598]
[1721325524396,3.0,3406.6,3406.1,2.93589]
[1721325524814,5.93553,3406.6,3405.9,5.2728]
[1721325524976,5.93553,3406.6,3406.0,2.93592]
[1721325525543,2.93557,3406.5,3405.9,5.27281]
[1721325526825,3.822668,3406.5,3405.9,2.93601]
[1721325527654,3.822668,3406.5,3406.0,0.06946976]
[1721325530155,3.0,3406.6,3406.0,3.00543976]
[1721325530451,2.93563,3406.5,3406.0,0.06946976]
[1721325530663,2.93571,3406.4,3405.8,2.93611]
[1721325530970,2.93563,3406.5,3406.1,0.06940263]
[1721325531125,2.93563,3406.5,3405.9,2.93603]
[1721325531468,2.93563,3406.5,3406.2,0.06933551]
[1721325531621,2.93563,3406.5,3405.9,2.93603]
[1721325531820,2.93563,3406.5,3406.0,0.06946976]
[1721325532330,5.87127,3406.5,3406.0,0.06946976]
[1721325532521,2.93568,3406.4,3406.0,0.06946976]
[1721325533125,10.8357,3406.1,3406.0,0.06946976]
[1721325533673,2.93663,3405.3,3404.6,2.93719]
[1721325533872,2.93644,3405.5,3404.4,2.93735]
[1721325533873,2.93683,3405.1,3404.4,2.93731]
[1721325534079,2.93664,3405.3,3404.4,2.93731]
[1721325534221,2.93697,3404.9,3404.3,2.93744]
[1721325534567,2.93697,3404.9,3404.3,3.761272]
[1721325535985,2.93693,3405.0,3404.3,3.761272]
[1721325536187,2.93693,3405.0,3404.4,2.93735]
[1721325536361,5.87387,3405.0,3404.4,2.93735]
[1721325536548,2.93696,3404.9,3404.4,2.93735]
[1721325538788,2.93696,3404.9,3404.4,3.8435562]
[1721325540167,5.8736,3405.1,3404.4,3.8435562]
[1721325540406,10.5,3405.6,3404.8,2.93701]
[1721325540407,13.43637,3405.6,3404.8,2.93701]
[1721325540765,2.93653,3405.4,3404.8,2.93701]
[1721325541560,13.43637,3405.6,3405.1,2.93676]
[1721325541892,10.5,3405.6,3405.1,2.93676]
[1721325542067,13.43634,3405.6,3405.1,2.93676]
[1721325542267,10.5,3405.6,3405.1,2.93676]
[1721325542473,7.5,3405.6,3405.3,2.93658]
[1721325542668,2.93606,3406.0,3405.3,2.93658]
[1721325542876,3.41591457,3406.0,3405.4,2.9365]
[1721325543093,2.93583,3406.2,3405.5,2.93641]
[1721325543303,2.93601,3406.0,3405.4,2.99932192]
[1721325543672,2.93597,3406.1,3405.6,0.06273763]
[1721325543878,2.93583,3406.2,3405.5,2.99922477]
[1721325544201,1.3590842,3406.1,3405.7,0.06267049]
[1721325544400,4.3590842,3406.1,3405.6,0.06276876]
[1721325544705,1.3590842,3406.1,3405.5,2.93642]
[1721325544901,4.3590842,3406.1,3405.6,0.06276876]
[1721325545064,3.0,3406.1,3405.6,0.06276876]
[1721325545465,2.936,3406.0,3405.6,0.06276876]
[1721325547604,3.0,3406.1,3405.6,0.06276876]
[1721325547805,3.0,3406.3,3405.6,0.06276876]
[1721325548099,3.0,3406.3,3405.6,2.31506876]
[1721325549088,3.0,3406.3,3405.7,2.93625]
[1721325549309,3.6822792,3406.3,3405.7,2.93625]
[1721325549618,2.93582,3406.2,3405.8,0.06262187]
[1721325549787,3.0,3406.1,3405.8,0.06262187]
[1721325550098,3.0,3406.1,3405.6,2.2523]
[1721325550099,3.0,3406.1,3405.9,0.06255474]
[1721325550540,6.6180192,3406.3,3406.0,0.06248761]
[1721325550695,6.6180192,3406.3,3405.7,2.93623]
[1721325550893,6.6180192,3406.3,3405.8,0.06262187]
[1721325551706,3.6822792,3406.3,3405.8,0.06262187]
[1721325552154,3.0,3406.3,3405.8,0.06262187]
[1721325553028,3.0,3406.3,3405.8,2.99876187]
[1721325553227,3.0,3406.3,3406.0,2.93599]
[1721325553528,2.93534,3406.8,3406.0,2.93593]
[1721325553733,2.93522,3406.9,3406.3,2.9357]
[1721325553933,3.44089251,3406.9,3406.4,0.06220728]
[1721325554099,3.44089251,3406.9,3406.3,2.9357]
[1721325554429,3.44089251,3406.9,3406.4,0.06218578]
[1721325554933,2.93507,3407.1,3406.3,5.22068]
[1721325555134,2.93507,3407.1,3406.4,0.06212352]
[1721325555450,2.3053,3407.5,3406.5,2.93551]
[1721325555451,2.93491,3407.3,3406.5,2.93551]
[1721325555943,2.93539,3406.7,3405.9,2.936]
[1721325556144,1.22129322,3407.3,3406.1,2.93585]
[1721325556348,2.93481,3407.4,3406.2,0.06222218]
[1721325556349,2.93535,3406.8,3406.2,0.06222218]
[1721325556721,2.93535,3406.8,3406.2,2.99804218]
[1721325557048,2.93541,3406.7,3406.2,0.06222218]
[1721325557259,2.93541,3406.7,3406.2,2.99804218]
[1721325557937,2.93523,3406.9,3406.2,2.99798218]
[1721325558138,2.93523,3406.9,3406.3,2.93573]
[1721325558316,5.87052,3406.9,3406.4,0.06208795]
[1721325558519,5.87052,3406.9,3406.3,2.93573]
[1721325558717,2.93523,3406.9,3406.4,0.06208795]
[1721325558920,7.15620322,3407.3,3406.3,2.93568]
[1721325559145,2.9351,3407.1,3406.5,2.93555]
[1721325559339,1.0986505,3407.2,3406.3,2.93568]
[1721325559340,2.93528,3406.9,3406.6,0.06195373]
[1721325559538,2.93528,3406.9,3406.3,2.93568]
[1721325559746,2.93528,3406.9,3406.4,0.06208795]
[1721325559943,2.93528,3406.9,3406.3,2.93568]
[1721325560250,2.93508,3407.1,3406.4,0.06208795]
[1721325560421,3.0,3407.0,3406.5,2.93551]
[1721325560622,5.93514,3407.0,3406.5,2.93551]
[1721325560823,5.93514,3407.0,3406.6,0.06195373]
[1721325561218,5.93514,3407.0,3406.5,2.93551]
[1721325561219,5.93514,3407.0,3406.3,3.770745]
[1721325561458,2.93523,3406.9,3406.7,0.06189923]
[1721325561663,3.0,3407.0,3406.3,2.93566]
[1721325561824,3.0,3407.0,3406.8,0.06183139]
[1721325562161,3.0,3407.0,3406.3,2.93566]
[1721325562344,3.0,3407.0,3406.5,2.93554]
[1721325562548,3.0,3407.0,3406.6,0.06196559]
[1721325562737,5.93514,3407.0,3406.3,2.93566]
[1721325563054,5.93514,3407.0,3406.4,0.0620998]
[1721325563353,6.94428132,3407.0,3406.4,0.0620998]
[1721325563554,6.94428132,3407.0,3406.3,2.93566]
[1721325563725,6.94428132,3407.0,3406.4,2.93563]
[1721325563927,2.93522,3406.9,3406.5,0.06201565]
[1721325564156,2.93522,3406.9,3406.3,2.93572]
[1721325564459,2.93522,3406.9,3406.4,0.06208276]
[1721325564834,2.93522,3406.9,3406.3,5.87138]
[1721325565160,2.93522,3406.9,3406.5,0.06201565]
[1721325565322,2.93522,3406.9,3406.3,2.93566]
[1721325565664,2.93522,3406.9,3406.4,0.06208276]
[1721325566024,0.69443613,3406.9,3406.1,2.93585]
[1721325566225,1.22129322,3407.3,3406.5,0.06201565]
[1721325566226,5.25612,3406.6,3406.5,0.06201565]
[1721325566455,2.93581,3406.3,3405.0,5.33739]
[1721325566657,2.9365,3405.5,3404.8,2.93702]
[1721325566860,2.9365,3405.5,3405.1,0.06293997]
[1721325567046,2.93651,3405.4,3404.6,8.27491]
[1721325567247,2.93651,3405.4,3404.7,2.93711]
[1721325567567,2.93651,3405.4,3404.7,2.99818198]
[1721325567741,2.93659,3405.3,3404.7,2.99818198]
[1721325569057,4.22129322,3405.9,3404.7,0.06107198]
[1721325569292,2.93687,3405.0,3404.7,0.06107198]
[1721325569459,2.93687,3405.0,3404.4,2.93736]
[1721325569642,2.93687,3405.0,3404.8,0.06100481]
[1721325569964,2.93687,3405.0,3404.9,0.06093764]
[1721325570331,2.93687,3405.0,3404.4,2.93736]
[1721325570531,2.93687,3405.0,3404.4,3.79432]
[1721325570738,2.93687,3405.0,3404.5,0.06120635]
[1721325571055,2.93677,3405.1,3404.5,0.06120635]
[1721325571256,2.93677,3405.1,3404.5,2.99848635]
[1721325572049,2.93652,3405.4,3404.7,2.93708]
[1721325572246,2.93652,3405.4,3404.8,0.59355363]
[1721325572559,2.93652,3405.4,3404.8,0.65465041]
[1721325572742,2.9366,3405.3,3404.8,0.65465041]
[1721325572938,2.9366,3405.3,3404.8,0.06109678]
[1721325573271,2.93651,3405.4,3404.8,2.99811678]
[1721325573634,7.5,3405.6,3404.8,0.06109678]
[1721325573841,2.93694,3404.9,3404.8,0.06109678]
[1721325574055,2.93694,3404.9,3404.2,5.33808]
[1721325574266,2.93694,3404.9,3404.8,0.06106268]
[1721325574474,2.93694,3404.9,3404.2,5.33808]
[1721325575239,2.93694,3404.9,3404.3,0.0613586]
[1721325575439,2.93694,3404.9,3404.3,0.05330021]
[1721325576054,2.93678,3405.1,3404.4,2.93735]
[1721325576383,2.93678,3405.1,3404.5,0.06106021]
[1721325576384,3.0,3405.0,3404.5,0.06106021]
[1721325576552,5.93687,3405.0,3404.5,0.06106021]
[1721325577465,2.93695,3404.9,3404.5,0.06106021]
[1721325578689,2.93695,3404.9,3404.3,2.93744]
[1721325578866,2.93695,3404.9,3404.6,0.06092636]
[1721325579065,2.93695,3404.9,3404.3,2.93744]
[1721325579263,2.93695,3404.9,3404.1,3.23169]
[1721325579264,2.93712,3404.7,3404.1,3.23169]
[1721325580295,2.93695,3404.9,3404.2,2.93748]
[1721325580455,5.87397,3404.9,3404.2,3.554394]
[1721325580655,2.93695,3404.9,3404.3,2.93745]
[1721325580859,2.93695,3404.9,3404.1,2.93756]
[1721325580860,2.93712,3404.7,3404.1,2.93756]
[1721325581077,3.0,3404.6,3404.1,2.93756]
[1721325582279,5.93721,3404.6,3403.9,5.87551]
[1721325582479,5.93721,3404.6,3404.0,2.93771]
[1721325582994,3.0,3404.6,3404.1,2.99878419]
[1721325583199,2.9371,3404.8,3404.1,2.99878419]
[1721325583200,3.0,3404.7,3404.1,2.99878419]
[1721325583658,5.93711,3404.7,3404.1,2.99878419]
[1721325584261,2.93722,3404.6,3404.1,0.06117419]
[1721325584581,2.93722,3404.6,3403.9,2.93773]
[1721325584782,2.93722,3404.6,3404.0,0.06124139]
[1721325584993,2.93743,3404.4,3404.0,0.06124139]
[1721325585200,2.93743,3404.4,3403.7,2.93792]
[1721325585381,3.0,3404.3,3403.8,0.061381]
[1721325585600,3.0,3404.3,3403.8,2.93788]
[1721325585909,3.0,3404.3,3403.9,0.06131379]
[1721325589420,2.028,3405.1,3403.9,0.06131379]
[1721325589421,7.5,3405.5,3404.0,2.2616]
[1721325589586,2.93664,3405.3,3404.6,2.93717]
[1721325589784,2.93664,3405.3,3404.7,0.06077624]
[1721325590396,2.93656,3405.4,3404.7,0.06077624]